fUST/lending_fUST_20241231
["ID","MTS","AMOUNT","RATE_DAILY","PERIOD"]
[347232299,1735602643070,-1544.9,0.00020531,2]
[347232300,1735602643079,-500.0,0.00020531,2]
[347232302,1735602643089,-529.77,0.00020531,2]
[347232304,1735602643099,-500.0,0.00020532,2]
[347232305,1735602643108,-500.0,0.00020532,2]
[347232306,1735602643118,-500.0,0.00020532,2]
[347232307,1735602643127,-265.05142426,0.00020533,2]
[347232308,1735602643137,-3083.56,0.00020533,3]
[347232309,1735602643146,-500.0,0.00020535,2]
[347232310,1735602643155,-500.0,0.00020535,2]
[347232311,1735602643165,-529.77,0.00020535,2]
[347232312,1735602643174,-491.911024,0.00020536,2]
[347232314,1735602643183,-491.911024,0.00020536,2]
[347232316,1735602643192,-2035.66,0.00020537,2]
[347232318,1735602643202,-617.86134059,0.00020657,2]
[347232319,1735602643211,-1200.0,0.00020669,2]
[347232321,1735602643220,-157.564822,0.00020712,2]
[347232323,1735602643229,-10314.42233733,0.00020784,2]
[347232325,1735602643239,-1544.9,0.00020799,2]
[347232327,1735602643248,-2000.0,0.000208,2]
[347232329,1735602643257,-836.8,0.000208,2]
[347232331,1735602643266,-151.0,0.000208,2]
[347232333,1735602643275,-1914.89,0.00020802,2]
[347232335,1735602643284,-742.94,0.00020802,2]
[347232336,1735602643294,-200.0,0.00020802,2]
[347232337,1735602643303,-500.0,0.00020802,3]
[347232338,1735602643312,-927.3,0.00020802,3]
[347232339,1735602643322,-599.28,0.00020802,3]
[347232340,1735602643331,-568.64,0.00020802,3]
[347232341,1735602643340,-746.81,0.00020802,3]
[347232342,1735602643349,-952.97,0.00020802,3]
[347232343,1735602643358,-500.0,0.00020803,2]
[347232344,1735602643367,-500.0,0.00020803,2]
[347232345,1735602643376,-500.0,0.00020803,2]
[347232346,1735602643385,-500.0,0.00020803,2]
[347232347,1735602643395,-1544.9,0.00020803,2]
[347232348,1735602643404,-1544.9,0.00020803,2]
[347232349,1735602643413,-1544.9,0.00020803,2]
[347232350,1735602643424,-1544.9,0.00020803,2]
[347232351,1735602643432,-1544.9,0.00020803,2]
[347232352,1735602643442,-1545.05,0.00020803,2]
[347232353,1735602643452,-500.0,0.00020803,2]
[347232354,1735602643461,-596.24,0.00020803,2]
[347232355,1735602643470,-11777.43,0.00020803,2]
[347232356,1735602643479,-614.7,0.00020803,2]
[347232357,1735602643490,-383.99,0.00020803,2]
[347232358,1735602643499,-587.12,0.00020803,2]
[347232359,1735602643508,-500.0,0.00020803,2]
[347232360,1735602643518,-500.0,0.00020803,2]
[347232361,1735602643527,-500.0,0.00020803,2]
[347232362,1735602643537,-500.0,0.00020803,2]
[347232363,1735602643547,-500.0,0.00020803,2]
[347232364,1735602643557,-500.0,0.00020803,2]
[347232365,1735602643566,-500.0,0.00020803,2]
[347232366,1735602643575,-500.0,0.00020803,2]
[347232367,1735602643585,-233.335621,0.00020803,2]
[347232368,1735602643595,-500.0,0.00020803,2]
[347232369,1735602643604,-233.335621,0.00020803,2]
[347232370,1735602643613,-12971.62,0.00020803,2]
[347232371,1735602643623,-409.77,0.00020803,3]
[347232372,1735602643632,-500.0,0.00020804,2]
[347232373,1735602643641,-151.0,0.00020804,2]
[347232374,1735602643650,-500.0,0.00020804,2]
[347232376,1735602643659,-500.0,0.00020804,2]
[347232377,1735602643669,-151.0,0.00020804,2]
[347232379,1735602643678,-648.71,0.00020804,2]
[347232380,1735602643687,-263.295126,0.00020804,2]
[347232381,1735602643696,-263.295126,0.00020804,2]
[347232382,1735602643705,-1266.52,0.00020804,2]
[347232383,1735602643714,-586.34,0.00020804,2]
[347232384,1735602643723,-500.0,0.00020804,2]
[347232386,1735602643732,-577.73,0.00020804,2]
[347232388,1735602643741,-383.55,0.00020804,2]
[347232391,1735602643751,-529.77,0.00020804,2]
[347232392,1735602643759,-500.0,0.00020805,2]
[347232393,1735602643769,-529.77,0.00020805,2]
[347232394,1735602643778,-252.66013,0.00020806,2]
[347232395,1735602643786,-500.0,0.00020806,2]
[347232396,1735602643795,-500.0,0.00020806,2]
[347232397,1735602643806,-151.0,0.00020807,2]
[347232398,1735602643815,-220.989047,0.00020807,2]
[347232399,1735602643829,-3083.56,0.00020807,3]
[347232401,1735602643838,-491.911024,0.00020809,2]
[347232402,1735602643847,-491.911024,0.00020809,2]
[347232404,1735602643858,-500.0,0.00020809,2]
[347232406,1735602643869,-529.77,0.0002081,2]
[347232407,1735602643879,-2035.66,0.00020811,2]
[347232408,1735602643889,-151.0,0.00020814,2]
[347232409,1735602643898,-151.0,0.00020814,2]
[347232410,1735602643908,-281.136459,0.00020814,2]
[347232411,1735602643918,-281.136459,0.00020814,2]
[347232412,1735602643927,-157.564822,0.00020904,2]
[347232413,1735602643936,-605.27375019,0.00020909,6]
[347232414,1735602643946,-617.86134059,0.00020914,2]
[347232415,1735602643955,-2046.46589998,0.00021,2]
[347232416,1735602643968,-953.53410002,0.00021,2]
[347232417,1735602643978,-439.0,0.00021,4]
[347232418,1735602643987,-233.335621,0.00021002,2]
[347232419,1735602643997,-233.335621,0.00021002,2]
[347232420,1735602644007,-500.0,0.00021002,2]
[347232421,1735602644016,-500.0,0.00021003,2]
[347232422,1735602644026,-529.77,0.00021003,2]
[347232423,1735602644035,-151.0,0.00021004,2]
[347232424,1735602644045,-151.0,0.00021009,2]
[347232425,1735602644055,-491.911024,0.00021009,2]
[347232426,1735602644064,-491.911024,0.00021009,2]
[347232427,1735602644074,-491.911024,0.00021009,2]
[347232428,1735602644084,-491.911024,0.00021009,2]
[347232429,1735602644093,-491.911024,0.00021009,2]
[347232430,1735602644103,-491.911024,0.00021009,2]
[347232431,1735602644113,-491.911024,0.00021009,2]
[347232432,1735602644122,-491.911024,0.00021009,2]
[347232433,1735602644131,-491.911024,0.00021009,2]
[347232434,1735602644141,-491.911024,0.00021009,2]
[347232435,1735602644150,-491.911024,0.00021009,2]
[347232436,1735602644159,-491.911024,0.00021009,2]
[347232437,1735602644168,-491.911024,0.00021009,2]
[347232438,1735602644178,-491.911024,0.00021009,2]
[347232439,1735602644187,-491.911024,0.00021009,2]
[347232440,1735602644196,-491.911017,0.00021009,2]
[347232441,1735602644205,-281.136459,0.00021009,2]
[347232442,1735602644215,-281.136459,0.00021009,2]
[347232443,1735602644224,-281.136459,0.00021009,2]
[347232444,1735602644233,-281.136459,0.00021009,2]
[347232445,1735602644243,-281.136459,0.00021009,2]
[347232446,1735602644252,-281.136459,0.00021009,2]
[347232447,1735602644262,-281.136459,0.00021009,2]
[347232448,1735602644271,-281.136459,0.00021009,2]
[347232449,1735602644280,-281.136459,0.00021009,2]
[347232450,1735602644289,-281.136459,0.00021009,2]
[347232451,1735602644299,-281.136459,0.00021009,2]
[347232452,1735602644309,-281.136459,0.00021009,2]
[347232453,1735602644319,-281.136459,0.00021009,2]
[347232454,1735602644329,-281.136459,0.00021009,2]
[347232455,1735602644339,-281.136459,0.00021009,2]
[347232456,1735602644348,-281.136459,0.00021009,2]
[347232457,1735602644360,-281.136459,0.00021009,2]
[347232458,1735602644370,-281.136465,0.00021009,2]
[347232459,1735602644380,-151.0,0.00021009,2]
[347232460,1735602644390,-151.0,0.00021009,2]
[347232461,1735602644399,-263.295126,0.00021009,2]
[347232462,1735602644409,-263.295126,0.00021009,2]
[347232463,1735602644418,-529.77,0.00021009,2]
[347232464,1735602644427,-529.77,0.00021009,2]
[347232465,1735602644438,-529.77,0.00021009,2]
[347232466,1735602644448,-529.77,0.00021009,2]
[347232467,1735602644457,-529.77,0.00021009,2]
[347232468,1735602644467,-529.77,0.00021009,2]
[347232469,1735602644477,-529.77,0.00021009,2]
[347232470,1735602644486,-529.85,0.00021009,2]
[347232471,1735602644495,-3000.0,0.0002101,2]
[347232472,1735602644505,-151.0,0.00021012,2]
[347232473,1735602644514,-151.0,0.00021012,2]
[347232474,1735602644524,-151.0,0.00021012,2]
[347232475,1735602644533,-151.0,0.00021012,2]
[347232476,1735602644543,-151.0,0.00021012,2]
[347232477,1735602644552,-151.0,0.00021012,2]
[347232478,1735602644561,-151.0,0.00021012,2]
[347232479,1735602644571,-151.0,0.00021012,2]
[347232480,1735602644580,-151.0,0.00021012,2]
[347232481,1735602644658,-151.0,0.00021012,2]
[347232482,1735602644667,-151.0,0.00021012,2]
[347232483,1735602644677,-151.0,0.00021012,2]
[347232484,1735602644686,-151.0,0.00021012,2]
[347232485,1735602644696,-151.0,0.00021012,2]
[347232486,1735602644705,-151.0,0.00021012,2]
[347232487,1735602644714,-151.0,0.00021012,2]
[347232488,1735602644724,-151.0,0.00021012,2]
[347232489,1735602644734,-175.496446,0.00021012,2]
[347232490,1735602644743,-500.0,0.00021013,2]
[347232491,1735602644753,-561.01620484,0.00021013,2]
[347232492,1735602644763,-545.45517569,0.00021014,2]
[347232493,1735602644772,-110167.41792946,0.00021014,10]
[347232502,1735602646742,-19999.69668,0.00021014,10]
[347232512,1735603292071,160.0,0.00020199,120]
[347232513,1735603351399,160.0,0.00023878,120]
[347232515,1735603411382,160.0,0.00024602,120]
[347232516,1735603471315,160.0,0.00024679,120]
[347232557,1735603832864,-198.885826,0.00013973,2]
[347232559,1735603832874,-263.342174,0.0001996,2]
[347232564,1735603832917,-308.931826,0.0001996,2]
[347232567,1735603832927,-511.91928225,0.00019973,2]
[347232569,1735603832936,-500.0,0.00019973,2]
[347232571,1735603832945,-500.0,0.00019977,3]
[347232573,1735603832954,-1042.36,0.00019977,3]
[347232575,1735603832964,-500.0,0.00019977,3]
[347232577,1735603832973,-564.69,0.00019977,3]
[347232579,1735603832982,-500.0,0.00019977,3]
[347232581,1735603832992,-500.0,0.00019978,2]
[347232583,1735603833001,-500.0,0.00019978,3]
[347232585,1735603833011,-500.0,0.00019978,3]
[347232587,1735603833020,-500.0,0.00019978,3]
[347232589,1735603833030,-500.0,0.00019978,3]
[347232591,1735603833040,-500.0,0.00019978,3]
[347232593,1735603833049,-500.0,0.00019978,3]
[347232595,1735603833059,-500.0,0.00019978,3]
[347232597,1735603833069,-500.0,0.00019978,3]
[347232598,1735603833079,-200.0,0.00019978,3]
[347232599,1735603833088,-526.86,0.00019978,3]
[347232601,1735603833098,-504.0,0.00019978,3]
[347232603,1735603833108,-500.0,0.00019978,3]
[347232605,1735603833118,-500.0,0.00019978,3]
[347232608,1735603833128,-500.0,0.00019978,3]
[347232611,1735603833137,-500.0,0.00019978,3]
[347232614,1735603833148,-500.0,0.00019978,3]
[347232616,1735603833158,-500.0,0.00019978,3]
[347232618,1735603833168,-500.0,0.00019978,3]
[347232620,1735603833177,-500.0,0.00019978,3]
[347232623,1735603833190,-500.0,0.00019978,3]
[347232625,1735603833204,-1101.79,0.00019978,3]
[347232627,1735603833223,-500.0,0.00019978,3]
[347232630,1735603833238,-500.0,0.00019978,3]
[347232633,1735603833252,-500.0,0.00019978,3]
[347232636,1735603833264,-542.41,0.00019978,3]
[347232639,1735603833277,-458.14,0.00019978,3]
[347232643,1735603833291,-500.0,0.00019978,3]
[347232646,1735603833303,-370.89889175,0.00019978,3]
[347232650,1735603833319,-310.02110825,0.00019978,3]
[347232654,1735603833332,-500.0,0.00019978,3]
[347232657,1735603833347,-351.10867199,0.00019978,3]
[347232662,1735603833363,-343.55762178,0.00019978,3]
[347232665,1735603833379,-5.08370623,0.00019978,3]
[347232670,1735603833392,-500.0,0.00019978,3]
[347232673,1735603833406,-302.59629377,0.00019978,3]
[347232678,1735603833422,-374.16370623,0.00019978,3]
[347232681,1735603833433,-82.57154114,0.00019978,3]
[347232782,1735603838580,-405.33942812,0.00019977,3]
[347232790,1735603840513,-94.66057188,0.00019977,3]
[347232792,1735603840525,-500.0,0.00019977,3]
[347232794,1735603840535,-417.42845886,0.00019978,3]
[347232796,1735603840546,-505.89,0.00019978,3]
[347232798,1735603840557,-500.0,0.00019978,3]
[347232799,1735603840568,-500.0,0.00019978,3]
[347232801,1735603840578,-500.0,0.00019978,3]
[347232803,1735603840589,-1890.52,0.00019978,3]
[347232805,1735603840602,-500.0,0.00019978,3]
[347232807,1735603840612,-500.0,0.00019978,3]
[347232809,1735603840623,-500.0,0.00019978,3]
[347232810,1735603840634,-500.0,0.00019978,3]
[347232811,1735603840644,-500.0,0.00019978,3]
[347232813,1735603840656,-500.0,0.00019978,3]
[347232814,1735603840667,-500.0,0.00019978,3]
[347232815,1735603840678,-500.0,0.00019978,3]
[347232816,1735603840689,-500.0,0.00019978,3]
[347232817,1735603840700,-500.0,0.00019978,3]
[347232818,1735603840710,-500.0,0.00019978,3]
[347232819,1735603840722,-500.0,0.00019978,3]
[347232820,1735603840732,-500.0,0.00019978,3]
[347232821,1735603840743,-500.0,0.00019978,3]
[347232822,1735603840754,-500.0,0.00019978,3]
[347232823,1735603840765,-785.79,0.00019978,3]
[347232824,1735603840776,-11582.54,0.00019978,3]
[347232825,1735603840786,-524.51,0.00019978,3]
[347232826,1735603840912,-199.70935872,0.00019978,3]
[347232827,1735603840925,-632.79,0.00019978,3]
[347232828,1735603840934,-500.0,0.00019978,3]
[347232829,1735603840943,-500.0,0.00019978,3]
[347232830,1735603840953,-500.0,0.00019978,3]
[347232831,1735603840962,-443.65091161,0.00019978,3]
[347232832,1735603840971,-500.0,0.00019978,3]
[347232833,1735603840980,-500.0,0.00019978,3]
[347232834,1735603840989,-809.84,0.00019978,3]
[347232835,1735603840999,-1055.88,0.00019978,3]
[347232836,1735603841008,-500.0,0.00019978,3]
[347232837,1735603841017,-152.76,0.00019979,2]
[347232838,1735603841026,-216.036,0.00019979,2]
[347232839,1735603841035,-444.89747907,0.00019979,3]
[347232840,1735603841044,-500.0,0.00019979,3]
[347232841,1735603841053,-262.96574021,0.00019979,3]
[347232842,1735603841062,-500.0,0.00019979,3]
[347232843,1735603841071,-500.0,0.00019979,3]
[347232844,1735603841080,-500.0,0.00019979,3]
[347232845,1735603841094,-500.0,0.00019979,3]
[347232846,1735603841103,-500.0,0.00019979,3]
[347232847,1735603841112,-500.0,0.00019979,3]
[347232848,1735603841121,-576.74,0.00019979,3]
[347232849,1735603841130,-271.87271591,0.00019979,3]
[347232850,1735603841139,-553.68,0.00019979,3]
[347232851,1735603841148,-500.0,0.00019979,3]
[347232852,1735603841157,-500.0,0.00019979,3]
[347232853,1735603841167,-500.0,0.00019979,3]
[347232854,1735603841176,-500.0,0.00019979,3]
[347232855,1735603841185,-500.0,0.00019979,3]
[347232856,1735603841194,-500.0,0.00019979,3]
[347232857,1735603841203,-500.0,0.00019979,3]
[347232858,1735603841214,-500.0,0.00019979,3]
[347232859,1735603841224,-540.59,0.00019979,3]
[347232860,1735603841233,-500.0,0.00019979,3]
[347232861,1735603841243,-500.0,0.00019979,3]
[347232862,1735603841253,-500.0,0.00019979,3]
[347232863,1735603841262,-667.09,0.00019979,3]
[347232864,1735603841271,-500.0,0.00019979,3]
[347232865,1735603841280,-500.0,0.00019979,3]
[347232866,1735603841291,-10714.04645493,0.00019979,3]
[347232867,1735603841304,-268.20779954,0.00019979,3]
[347232868,1735603841315,-2230.51574553,0.00019979,3]
[347232869,1735603841325,-500.0,0.00019979,3]
[347232870,1735603841334,-500.0,0.00019979,3]
[347232871,1735603841344,-500.0,0.00019979,3]
[347232872,1735603841353,-500.0,0.00019979,3]
[347232873,1735603841362,-500.0,0.00019979,3]
[347232874,1735603841371,-500.0,0.00019979,2]
[347232875,1735603841381,-500.0,0.00019979,2]
[347232876,1735603841390,-445.4963406,0.00019979,2]
[347232877,1735603841399,-342.0,0.00019979,2]
[347232878,1735603841408,-500.0,0.00019979,2]
[347232879,1735603841417,-500.0,0.00019979,2]
[347232880,1735603841426,-431.46266488,0.00019979,2]
[347232881,1735603841435,-390.6022241,0.00019979,2]
[347232882,1735603841445,-333.2193239,0.00019979,2]
[347232883,1735603841454,-500.0,0.0001998,3]
[347232884,1735603841463,-500.0,0.0001998,3]
[347232885,1735603841472,-500.0,0.0001998,3]
[347232886,1735603841481,-500.0,0.0001998,2]
[347232887,1735603841490,-500.0,0.0001998,3]
[347232888,1735603841499,-500.0,0.0001998,3]
[347232889,1735603841507,-500.0,0.0001998,3]
[347232890,1735603841517,-500.0,0.0001998,3]
[347232891,1735603841525,-500.0,0.0001998,2]
[347232892,1735603841534,-500.0,0.0001998,3]
[347232893,1735603841543,-500.0,0.0001998,3]
[347232894,1735603841552,-500.0,0.0001998,3]
[347232895,1735603841562,-500.0,0.0001998,3]
[347232896,1735603841571,-500.0,0.0001998,3]
[347232897,1735603841580,-500.0,0.0001998,3]
[347232898,1735603841589,-500.0,0.0001998,3]
[347232899,1735603841598,-500.0,0.0001998,3]
[347232900,1735603841608,-500.0,0.0001998,3]
[347232901,1735603841617,-500.0,0.0001998,3]
[347232902,1735603841626,-1286.79,0.0001998,3]
[347232903,1735603841635,-500.0,0.0001998,3]
[347232904,1735603841644,-500.0,0.0001998,3]
[347232905,1735603841653,-500.0,0.0001998,2]
[347232906,1735603841662,-500.0,0.0001998,3]
[347232907,1735603841671,-500.0,0.0001998,3]
[347232908,1735603841679,-500.0,0.0001998,3]
[347232909,1735603841689,-508.77,0.0001998,3]
[347232910,1735603841698,-500.0,0.0001998,3]
[347232911,1735603841707,-500.0,0.0001998,3]
[347232912,1735603841716,-500.0,0.0001998,3]
[347232913,1735603841725,-500.0,0.0001998,3]
[347232914,1735603841735,-608.81,0.0001998,3]
[347232915,1735603841744,-500.0,0.0001998,3]
[347232916,1735603841754,-503.10281426,0.0001998,3]
[347232917,1735603841763,-500.0,0.0001998,3]
[347232918,1735603841773,-500.0,0.0001998,3]
[347232919,1735603841782,-500.0,0.0001998,3]
[347232920,1735603841791,-500.0,0.0001998,3]
[347232921,1735603841801,-500.0,0.0001998,3]
[347232922,1735603841810,-500.0,0.0001998,3]
[347232923,1735603841819,-549.29810129,0.0001998,3]
[347232924,1735603841829,-500.0,0.0001998,3]
[347232925,1735603841838,-500.0,0.0001998,3]
[347232926,1735603841850,-500.0,0.0001998,3]
[347232927,1735603841859,-500.0,0.0001998,3]
[347232928,1735603841869,-500.0,0.0001998,3]
[347232929,1735603841878,-500.0,0.0001998,3]
[347232930,1735603841888,-380.58966107,0.0001998,3]
[347232931,1735603841897,-500.0,0.00019981,3]
[347232932,1735603841907,-500.0,0.00019981,3]
[347232933,1735603841916,-383.99564397,0.00019981,3]
[347232934,1735603841927,-500.0,0.00019981,3]
[347232935,1735603841937,-500.0,0.00019981,3]
[347232936,1735603841946,-500.0,0.00019981,3]
[347232937,1735603841956,-500.0,0.00019981,3]
[347232938,1735603841965,-500.0,0.00019981,3]
[347232939,1735603841975,-500.0,0.00019981,3]
[347232940,1735603841984,-211.64130333,0.00019981,3]
[347232941,1735603841994,-500.0,0.00019981,3]
[347232942,1735603842003,-500.0,0.00019981,3]
[347232943,1735603842013,-500.0,0.00019981,3]
[347232944,1735603842022,-500.0,0.00019981,3]
[347232945,1735603842031,-500.0,0.00019981,3]
[347232946,1735603842041,-500.0,0.00019981,3]
[347232947,1735603842051,-500.0,0.00019981,3]
[347232948,1735603842060,-500.0,0.00019981,3]
[347232949,1735603842070,-500.0,0.00019981,3]
[347232950,1735603842079,-500.0,0.00019981,3]
[347232951,1735603842088,-500.0,0.00019981,3]
[347232952,1735603842098,-500.0,0.00019981,3]
[347232953,1735603842108,-500.0,0.00019981,3]
[347232954,1735603842117,-500.0,0.00019981,3]
[347232955,1735603842126,-500.0,0.00019981,3]
[347232956,1735603842136,-500.0,0.00019982,3]
[347232957,1735603842145,-500.0,0.00019982,3]
[347232958,1735603842155,-500.0,0.00019982,3]
[347232959,1735603842165,-500.0,0.00019982,3]
[347232960,1735603842175,-500.0,0.00019982,3]
[347232961,1735603842185,-500.0,0.00019982,3]
[347232962,1735603842194,-500.0,0.00019982,3]
[347232963,1735603842204,-3055.58,0.00019982,3]
[347232964,1735603842214,-500.0,0.00019982,3]
[347232965,1735603842227,-500.0,0.00019982,3]
[347232966,1735603842236,-2249.56,0.00019984,3]
[347232967,1735603842245,-400.0,0.0001999,2]
[347232968,1735603842254,-50000.0,0.0002,2]
[347232969,1735603842264,-500.0,0.00020251,3]
[347232970,1735603842274,-1042.36,0.00020251,3]
[347232971,1735603842283,-500.0,0.00020251,3]
[347232972,1735603842292,-564.69,0.00020251,3]
[347232973,1735603842302,-500.0,0.00020251,3]
[347232974,1735603842312,-500.0,0.00020251,3]
[347232975,1735603842321,-582.82112238,0.00020251,3]
[347232976,1735603842331,-500.0,0.00020252,3]
[347232977,1735603842342,-500.0,0.00020252,3]
[347232978,1735603842351,-500.0,0.00020252,3]
[347232979,1735603842361,-500.0,0.00020252,3]
[347232980,1735603842370,-500.0,0.00020252,3]
[347232981,1735603842380,-500.0,0.00020252,3]
[347232982,1735603842390,-500.0,0.00020252,3]
[347232983,1735603842400,-200.0,0.00020252,3]
[347232984,1735603842410,-500.0,0.00020252,3]
[347232985,1735603842419,-526.86,0.00020252,3]
[347232986,1735603842428,-500.0,0.00020252,3]
[347232987,1735603842437,-500.0,0.00020252,3]
[347232988,1735603842447,-500.0,0.00020252,3]
[347232989,1735603842456,-530.44,0.00020252,3]
[347232990,1735603842465,-500.0,0.00020252,3]
[347232991,1735603842474,-202.80349095,0.00020252,3]
[347232992,1735603842484,-680.92,0.00020252,3]
[347232993,1735603842493,-500.0,0.00020252,3]
[347232994,1735603842503,-699.75,0.00020252,3]
[347232995,1735603842512,-307.65146188,0.00020252,3]
[347232996,1735603842529,-192.34853812,0.00020252,3]
[347232997,1735603842539,-676.76,0.00020252,3]
[347232998,1735603842548,-500.0,0.00020252,3]
[347232999,1735603842558,-505.89,0.00020252,3]
[347233000,1735603842567,-500.0,0.00020252,3]
[347233001,1735603842577,-273.67965802,0.00020252,3]
[347233002,1735603842587,-619.9,0.00020252,3]
[347233003,1735603842598,-1890.52,0.00020252,3]
[347233004,1735603842608,-500.0,0.00020252,3]
[347233005,1735603842617,-500.0,0.00020252,3]
[347233006,1735603842626,-500.0,0.00020252,3]
[347233007,1735603842636,-500.0,0.00020252,3]
[347233008,1735603842645,-500.0,0.00020252,3]
[347233009,1735603842654,-500.0,0.00020252,3]
[347233010,1735603842663,-500.0,0.00020252,3]
[347233011,1735603842673,-500.0,0.00020252,3]
[347233012,1735603842682,-500.0,0.00020252,3]
[347233013,1735603842691,-500.0,0.00020252,3]
[347233014,1735603842700,-500.0,0.00020252,3]
[347233015,1735603842710,-500.0,0.00020252,3]
[347233016,1735603842719,-500.0,0.00020252,3]
[347233017,1735603842728,-504.6,0.00020252,3]
[347233018,1735603842737,-785.79,0.00020252,3]
[347233019,1735603842747,-11582.54,0.00020252,3]
[347233020,1735603842756,-524.51,0.00020252,3]
[347233021,1735603842766,-632.79,0.00020252,3]
[347233022,1735603842775,-500.0,0.00020252,3]
[347233023,1735603842785,-500.0,0.00020252,3]
[347233024,1735603842794,-500.0,0.00020252,3]
[347233025,1735603842804,-500.0,0.00020252,3]
[347233026,1735603842814,-809.84,0.00020252,3]
[347233027,1735603842823,-1055.88,0.00020252,3]
[347233028,1735603842832,-500.0,0.00020253,3]
[347233029,1735603842841,-500.0,0.00020253,3]
[347233030,1735603842851,-500.0,0.00020253,3]
[347233031,1735603842860,-500.0,0.00020253,3]
[347233032,1735603842869,-500.0,0.00020253,3]
[347233033,1735603842879,-500.0,0.00020253,3]
[347233034,1735603842888,-576.74,0.00020253,3]
[347233035,1735603842897,-553.68,0.00020253,3]
[347233036,1735603842906,-500.0,0.00020253,3]
[347233037,1735603842915,-500.0,0.00020253,3]
[347233038,1735603842925,-500.0,0.00020253,3]
[347233039,1735603842934,-500.0,0.00020253,3]
[347233040,1735603842943,-500.0,0.00020253,3]
[347233041,1735603842952,-500.0,0.00020253,3]
[347233042,1735603842962,-500.0,0.00020253,3]
[347233043,1735603842971,-500.0,0.00020253,3]
[347233044,1735603842981,-540.59,0.00020253,3]
[347233045,1735603842991,-500.0,0.00020253,3]
[347233046,1735603843000,-500.0,0.00020253,3]
[347233047,1735603843010,-667.09,0.00020253,3]
[347233048,1735603843020,-500.0,0.00020253,3]
[347233049,1735603843029,-500.0,0.00020253,3]
[347233050,1735603843039,-13212.77,0.00020253,3]
[347233051,1735603843048,-500.0,0.00020253,3]
[347233052,1735603843058,-500.0,0.00020253,3]
[347233053,1735603843067,-500.0,0.00020253,3]
[347233054,1735603843077,-500.0,0.00020253,3]
[347233055,1735603843086,-500.0,0.00020253,3]
[347233056,1735603843097,-500.0,0.00020254,3]
[347233057,1735603843106,-500.0,0.00020254,3]
[347233058,1735603843115,-500.0,0.00020254,3]
[347233059,1735603843124,-500.0,0.00020254,3]
[347233060,1735603843133,-500.0,0.00020254,3]
[347233061,1735603843142,-500.0,0.00020254,3]
[347233062,1735603843151,-500.0,0.00020254,3]
[347233063,1735603843161,-500.0,0.00020254,3]
[347233064,1735603843170,-212.86,0.00020254,3]
[347233065,1735603843179,-1286.79,0.00020254,3]
[347233066,1735603843188,-500.0,0.00020254,3]
[347233067,1735603843197,-608.81,0.00020254,3]
[347233068,1735603843206,-500.0,0.00020254,3]
[347233069,1735603843217,-500.0,0.00020255,3]
[347233070,1735603843228,-3055.58,0.00020256,3]
[347233073,1735603843306,-2249.56,0.00020258,3]
[347233074,1735603843326,-500.0,0.0002026,3]